[Event "ESP-chT 2nd Division 2019"]
[Site "Linares"]
[Date "2019.08.20"]
[Round "3.37"]
[White "Bayo Milagro, Alvaro"]
[Black "Gomez Anadon, Daniel"]
[Result "1/2-1/2"]
[ECO "D30"]
[WhiteElo "2284"]
[BlackElo "2274"]
[Annotator "NA"]
[PlyCount "104"]
[EventDate "2019.08.19"]
[EventType "team-tourn"]
[EventCountry "ESP"]
[SourceTitle "playchess.com"]
[Source "ChessBase"]
[SourceQuality "1"]
[TimeControl "5400+30"]

1. d4 {[%emt 0:00:00]} d5 {[%emt 0:00:00]} 2. c4 {[%emt 0:00:00]} e6 {[%emt 0:00:00]} 3. Nf3 {[%emt 0:00:00]} Nf6 {[%emt 0:00:00]} 4. e3 {[%emt 0:00:00]} c6 {[%emt 0:01:17]} 5. Nbd2 {[%emt 0:00:02]} Nbd7 {[%emt 0:01:53]} 6. b3 {[%emt 0:00:14]} Bd6 {[%emt 0:00:29]} 7. Bb2 {[%emt 0:00:10]} Qe7 {[%emt 0:02:43]} 8. Ne5 {[%emt 0:00:50]} Ne4 {[%emt 0:07:26]} 9. a3 {[%emt 0:05:51]} Nxd2 {[%emt 0:02:27]} 10. Qxd2 {[%emt 0:00:14]} f6 {[%emt 0:00:21]} 11. Nxd7 {[%emt 0:03:34]} Bxd7 {[%emt 0:00:13]} 12. Be2 {[%emt 0:00:10]} O-O {[%emt 0:01:32]} 13. O-O {[%emt 0:00:43]} f5 {[%emt 0:02:41]} 14. c5 {[%emt 0:02:41]} Bc7 {[%emt 0:00:27]} 15. f4 {[%emt 0:00:07]} Rf6 {[%emt 0:01:59]} 16. b4 {[%emt 0:01:42]} Rh6 {[%emt 0:02:26]} 17. g3 {[%emt 0:02:27]} g5 {[%emt 0:07:31]} 18. a4 {[%emt 0:01:16]} Kh8 {[%emt 0:01:39]} 19. Rf2 {[%emt 0:03:50]} Rg8 {[%emt 0:01:31]} 20. Rg2 {[%emt 0:01:45]} Be8 {[%emt 0:07:45]} 21. Bc3 {[%emt 0:02:30]} Bh5 {[%emt 0:11:31]} 22. Rb1 {[%emt 0:02:01]} Bxe2 {[%emt 0:01:50]} 23. Qxe2 {[%emt 0:01:24]} Rhg6 {[%emt 0:02:47]} 24. Qf3 {[%emt 0:01:53]} Qg7 {[%emt 0:10:11]} 25. b5 {[%emt 0:02:16]} gxf4 {[%emt 0:01:45]} 26. exf4 {[%emt 0:00:36]} Bd8 {[%emt 0:05:14]} 27. bxc6 {[%emt 0:06:03]} bxc6 {[%emt 0:00:06]} 28. Kf2 {[%emt 0:00:08]} Bf6 {[%emt 0:01:28]} 29. Ke3 {[%emt 0:00:52]} Qh6 {[%emt 0:05:43]} 30. Kd3 {[%emt 0:05:42]} Qh3 {[%emt 0:01:31]} 31. Be1 {[%emt 0:00:46]} h5 {[%emt 0:05:39]} 32. Re2 {[%emt 0:00:55]} Re8 {[%emt 0:04:06]} 33. a5 {[%emt 0:02:34]} Rg7 {[%emt 0:04:48]} 34. a6 {[%emt 0:01:53]} Qg4 {[%emt 0:01:45]} 35. Qe3 {[%emt 0:01:08]} Kg8 {[%emt 0:02:03]} 36. Reb2 {[%emt 0:01:06]} e5 {[%emt 0:01:32]} 37. Rb8 {[%emt 0:13:26]} e4+ {[%emt 0:00:15]} 38. Kd2 {[%emt 0:00:28]} Rge7 {[%emt 0:00:43]} 39. Bf2 {[%emt 0:00:40]} Kf7 {[%emt 0:01:15]} 40. Rxe8 {[%emt 0:00:38]} Kxe8 {[%emt 0:00:11]} 41. Rb8+ {[%emt 0:01:06]} Kf7 {[%emt 0:00:51]} 42. Rc8 {[%emt 0:00:59]} Qh3 {[%emt 0:00:39]} 43. Rxc6 {[%emt 0:01:38]} Qf1 {[%emt 0:00:38]} 44. Rd6 {[%emt 0:03:21]} Qb5 {[%emt 0:00:35]} 45. Qc3 {[%emt 0:03:23]} Re6 {[%emt 0:00:27]} 46. Ke1 {[%emt 0:04:04]} Rxd6 {[%emt 0:00:21]} 47. cxd6 {[%emt 0:00:35]} Bd8 {[%emt 0:00:37]} 48. Qe3 {[%emt 0:03:39]} Ba5+ {[%emt 0:00:27]} 49. Kd1 {[%emt 0:00:11]} Qb1+ {[%emt 0:00:37]} 50. Ke2 {[%emt 0:00:01]} Qb5+ {[%emt 0:00:21]} 51. Kd1 {[%emt 0:00:02]} Qb1+ {[%emt 0:00:41]} 52. Ke2 {[%emt 0:00:11]} Qb5+ {[%emt 0:00:20]} 1/2-1/2

[Event "ESP-chT 2nd Division 2019"]
[Site "Linares"]
[Date "2019.08.20"]
[Round "3.38"]
[White "Gonzalez Maza, Rafael"]
[Black "Lizuain Toni, Javier"]
[Result "0-1"]
[ECO "A80"]
[WhiteElo "2173"]
[BlackElo "1884"]
[Annotator "NA"]
[PlyCount "76"]
[EventDate "2019.08.19"]
[EventType "team-tourn"]
[EventCountry "ESP"]
[SourceTitle "playchess.com"]
[Source "ChessBase"]
[SourceQuality "1"]
[TimeControl "5400+30"]

1. d4 {[%emt 0:00:00]} f5 {[%emt 0:01:04]} 2. Nf3 {[%emt 0:00:00]} Nf6 {[%emt 0:00:15]} 3. e3 {[%emt 0:00:11]} d6 {[%emt 0:00:30]} 4. b3 {[%emt 0:03:56]} g6 {[%emt 0:00:18]} 5. Bb2 {[%emt 0:00:42]} Bg7 {[%emt 0:00:31]} 6. Nbd2 {[%emt 0:05:35]} e6 {[%emt 0:07:35]} 7. Bd3 {[%emt 0:07:08]} O-O {[%emt 0:01:29]} 8. e4 {[%emt 0:07:39]} fxe4 {[%emt 0:11:06]} 9. Nxe4 {[%emt 0:00:20]} Nxe4 {[%emt 0:00:51]} 10. Bxe4 {[%emt 0:00:02]} Nd7 {[%emt 0:05:27]} 11. c4 {[%emt 0:08:19]} Nf6 {[%emt 0:03:45]} 12. Bc2 {[%emt 0:16:06]} Bd7 {[%emt 0:02:45]} 13. O-O {[%emt 0:01:44]} Nh5 {[%emt 0:07:05]} 14. Ne1 {[%emt 0:04:54]} Bc6 {[%emt 0:09:03]} 15. f3 {[%emt 0:03:52]} Qh4 {[%emt 0:04:16]} 16. Qd2 {[%emt 0:01:52]} Rf7 {[%emt 0:16:07]} 17. Rd1 {[%emt 0:02:59]} Raf8 {[%emt 0:02:24]} 18. Qf2 {[%emt 0:08:55]} Qe7 {[%emt 0:00:34]} 19. Bc1 {[%emt 0:02:20]} Nf4 {[%emt 0:04:23]} 20. Be3 {[%emt 0:01:40]} Qg5 {[%emt 0:05:53]} 21. Qd2 {[%emt 0:00:40]} Qh5 {[%emt 0:03:38]} 22. b4 {[%emt 0:04:05]} e5 {[%emt 0:01:25]} 23. d5 {[%emt 0:00:50]} Bd7 {[%emt 0:01:10]} 24. Be4 {[%emt 0:00:52]} g5 {[%emt 0:00:36]} 25. Kh1 {[%emt 0:02:30]} Bh6 {[%emt 0:04:25]} 26. g4 {[%emt 0:04:21]} Qh3 {[%emt 0:00:33]} 27. Rg1 {[%emt 0:00:21]} Bg7 {[%emt 0:00:19]} 28. Nd3 Nxd3 {[%emt 0:01:42]} 29. Rg3 {[%emt 0:02:38]} Nf2+ {[%emt 0:01:17]} 30. Qxf2 {[%emt 0:00:08]} Qh6 {[%emt 0:02:40]} 31. Qd2 {[%emt 0:00:43]} Bf6 {[%emt 0:00:37]} 32. h4 {[%emt 0:00:23]} Rg7 {[%emt 0:00:41]} 33. Kg2 {[%emt 0:00:15]} Bd8 {[%emt 0:01:08]} 34. Rh1 {[%emt 0:01:08]} Rf4 {[%emt 0:00:26]} 35. hxg5 {[%emt 0:02:50]} Qxg5 {[%emt 0:00:10]} 36. Bxf4 {[%emt 0:01:41]} exf4 {[%emt 0:00:01]} 37. Rgh3 {[%emt 0:00:19]} Bxg4 {[%emt 0:00:46]} 38. fxg4 {[%emt 0:00:21]} f3+ {[%emt 0:00:13]} 0-1

[Event "ESP-chT 2nd Division 2019"]
[Site "Linares"]
[Date "2019.08.20"]
[Round "3.39"]
[White "Roldan Marques, Marta"]
[Black "Garcia Paolicchi, Raul"]
[Result "0-1"]
[ECO "B23"]
[WhiteElo "1886"]
[BlackElo "2140"]
[Annotator "NA"]
[PlyCount "122"]
[EventDate "2019.08.19"]
[EventType "team-tourn"]
[EventCountry "ESP"]
[SourceTitle "playchess.com"]
[Source "ChessBase"]
[SourceQuality "1"]
[TimeControl "5400+30"]

1. e4 {[%emt 0:00:00]} c5 {[%emt 0:00:00]} 2. Nc3 {[%emt 0:00:00]} e6 {[%emt 0:00:00]} 3. g3 {[%emt 0:00:00]} d5 {[%emt 0:00:43]} 4. exd5 {[%emt 0:00:50]} exd5 {[%emt 0:00:08]} 5. Bg2 {[%emt 0:01:03]} Nf6 {[%emt 0:00:08]} 6. d3 {[%emt 0:00:49]} d4 {[%emt 0:05:54]} 7. Ne4 {[%emt 0:01:05]} Be7 {[%emt 0:01:55]} 8. Ne2 {[%emt 0:06:33]} Nd5 {[%emt 0:03:29]} 9. Nf4 {[%emt 0:07:37]} Nxf4 {[%emt 0:00:18]} 10. Bxf4 {[%emt 0:00:03]} O-O {[%emt 0:00:21]} 11. O-O {[%emt 0:06:23]} Bf5 {[%emt 0:07:18]} 12. h4 {[%emt 0:07:37]} Qd7 {[%emt 0:01:36]} 13. Re1 {[%emt 0:08:15]} Nc6 {[%emt 0:01:14]} 14. Qe2 {[%emt 0:07:32]} Rfe8 {[%emt 0:00:54]} 15. Qf1 {[%emt 0:02:55]} Nb4 {[%emt 0:05:20]} 16. Re2 {[%emt 0:00:53]} Bg4 {[%emt 0:04:18]} 17. f3 {[%emt 0:07:14]} Be6 {[%emt 0:00:29]} 18. a3 {[%emt 0:00:06]} Nd5 {[%emt 0:00:30]} 19. Bd2 {[%emt 0:00:07]} h6 {[%emt 0:01:58]} 20. Rae1 {[%emt 0:03:14]} Bf8 {[%emt 0:02:19]} 21. Kh2 {[%emt 0:03:27]} f5 {[%emt 0:06:00]} 22. Nf2 {[%emt 0:00:06]} f4 {[%emt 0:01:08]} 23. gxf4 {[%emt 0:07:31]} Bd6 {[%emt 0:02:36]} 24. Ne4 {[%emt 0:05:19]} Bxf4+ {[%emt 0:11:45]} 25. Bxf4 {[%emt 0:00:11]} Nxf4 {[%emt 0:00:06]} 26. Rd2 {[%emt 0:05:41]} Qc7 {[%emt 0:01:52]} 27. Kh1 {[%emt 0:01:35]} Rad8 {[%emt 0:05:25]} 28. Qf2 {[%emt 0:03:11]} b6 {[%emt 0:01:17]} 29. Qg3 {[%emt 0:01:46]} Qf7 {[%emt 0:00:32]} 30. Rg1 {[%emt 0:02:19]} Rf8 {[%emt 0:06:44]} 31. Rf2 {[%emt 0:04:35]} Rd5 {[%emt 0:12:54]} 32. Bf1 {[%emt 0:02:21]} Kh7 {[%emt 0:00:56]} 33. Qh2 {[%emt 0:03:00]} Kg8 {[%emt 0:00:40]} 34. Qg3 {[%emt 0:00:13]} Nh5 {[%emt 0:03:51]} 35. Qg6 {[%emt 0:01:32]} Qxg6 {[%emt 0:00:58]} 36. Rxg6 {[%emt 0:00:02]} Nf4 {[%emt 0:00:16]} 37. Rg3 {[%emt 0:00:39]} Rh5 {[%emt 0:00:33]} 38. Rh2 {[%emt 0:00:05]} Kh7 {[%emt 0:00:20]} 39. Nf2 {[%emt 0:02:03]} Rf7 {[%emt 0:02:26]} 40. Kg1 {[%emt 0:01:16]} Ng6 {[%emt 0:01:12]} 41. Be2 {[%emt 0:00:40]} Bd5 {[%emt 0:01:43]} 42. Ne4 {[%emt 0:00:25]} Rxh4 {[%emt 0:00:33]} 43. Rxh4 {[%emt 0:00:05]} Nxh4 {[%emt 0:00:06]} 44. Rh3 {[%emt 0:00:23]} g5 {[%emt 0:00:22]} 45. Kh2 {[%emt 0:00:41]} Kg6 {[%emt 0:00:38]} 46. Kg1 {[%emt 0:00:29]} Nf5 {[%emt 0:00:59]} 47. f4 {[%emt 0:00:38]} Nh4 {[%emt 0:00:52]} 48. fxg5 {[%emt 0:00:29]} hxg5 {[%emt 0:00:07]} 49. Ng3 {[%emt 0:00:36]} Bf3 {[%emt 0:00:51]} 50. Rh2 {[%emt 0:00:37]} Re7 {[%emt 0:00:37]} 51. Rf2 {[%emt 0:00:32]} Bxe2 {[%emt 0:01:03]} 52. Nxe2 {[%emt 0:00:05]} Re3 {[%emt 0:00:20]} 53. Kf1 {[%emt 0:00:53]} Nf5 {[%emt 0:00:38]} 54. Kg2 {[%emt 0:00:18]} g4 {[%emt 0:01:21]} 55. Nf4+ {[%emt 0:00:35]} Kg5 {[%emt 0:00:18]} 56. Nd5 {[%emt 0:00:37]} Rg3+ {[%emt 0:00:26]} 57. Kh1 {[%emt 0:00:15]} Ne3 {[%emt 0:00:56]} 58. Nf6 {[%emt 0:00:28]} Rf3 {[%emt 0:01:11]} 59. Ne4+ {[%emt 0:00:10]} Kf4 {[%emt 0:00:09]} 60. Re2 {[%emt 0:00:25]} g3 {[%emt 0:00:20]} 61. Nd2 {[%emt 0:00:47]} Rf2 {[%emt 0:01:05]} 0-1

[Event "ESP-chT 2nd Division 2019"]
[Site "Linares"]
[Date "2019.08.21"]
[Round "4.2"]
[White "Gavarrete, Nahun"]
[Black "Del Rio De Angelis, Salvador G."]
[Result "0-1"]
[ECO "B41"]
[WhiteElo "2349"]
[BlackElo "2472"]
[Annotator "ChessBase"]
[PlyCount "44"]
[EventDate "2019.08.19"]
[EventType "team-tourn"]
[EventCountry "ESP"]
[SourceTitle "playchess.com"]
[Source "ChessBase"]
[SourceQuality "1"]
[TimeControl "5400+30"]

1. e4 {[%emt 0:00:00]} c5 {[%emt 0:00:00]} 2. Nf3 {[%emt 0:00:17]} e6 {[%emt 0:00:00]} 3. d4 {[%emt 0:00:36]} cxd4 {[%emt 0:00:01]} 4. Nxd4 {[%emt 0:00:30]} a6 {[%emt 0:00:08]} 5. c4 {[%emt 0:03:12]} Nf6 {[%emt 0:00:34]} 6. Nc3 {[%emt 0:00:10]} Bb4 {[%emt 0:00:05]} 7. Qf3 {[%emt 0:07:15]} Qc7 {[%emt 0:05:28]} 8. a3 {[%emt 0:05:01]} Be7 {[%emt 0:02:38]} 9. Be2 {[%emt 0:01:48]} d6 {[%emt 0:06:51]} 10. O-O {[%emt 0:03:09]} Nbd7 {[%emt 0:06:56]} 11. Qg3 {[%emt 0:17:28]} Ne5 {[%emt 0:04:37]} 12. f4 {[%emt 0:03:33]} Nxc4 {[%emt 0:09:10]} 13. Bxc4 {[%emt 0:00:45]} Qxc4 {[%emt 0:00:05]} 14. Be3 {[%emt 0:00:14]} O-O {[%emt 0:06:50]} 15. Rac1 {[%emt 0:01:08]} Bd8 {[%emt 0:07:27]} 16. b3 {[%emt 0:16:15]} Qc7 {[%emt 0:00:47]} 17. e5 {[%emt 0:03:35]} dxe5 {[%emt 0:01:20]} 18. Nd5 {[%emt 0:09:10]} Qa5 {[%emt 0:07:24]} 19. Nxf6+ {[%emt 0:04:45]} Bxf6 {[%emt 0:00:07]} 20. b4 {[%emt 0:00:35]} exf4 {[%emt 0:06:06]} 21. Rxf4 {[%emt 0:00:32]} Qd8 {[%emt 0:00:14]} 22. Rcf1 {[%emt 0:03:25]} Be5 {[%emt 0:01:58]} 0-1

[Event "ESP-chT 2nd Division 2019"]
[Site "Linares"]
[Date "2019.08.21"]
[Round "4.3"]
[White "Iruzubieta Villaluenga, Jesus M"]
[Black "Nieves Cabanes, Jose Manuel"]
[Result "1/2-1/2"]
[ECO "C16"]
[WhiteElo "2438"]
[BlackElo "2311"]
[Annotator "NA"]
[PlyCount "140"]
[EventDate "2019.08.19"]
[EventType "team-tourn"]
[EventCountry "ESP"]
[SourceTitle "playchess.com"]
[Source "ChessBase"]
[SourceQuality "1"]
[TimeControl "5400+30"]

1. e4 {[%emt 0:00:00]} e6 {[%emt 0:00:00]} 2. d4 {[%emt 0:00:03]} d5 {[%emt 0:00:00]} 3. Nc3 {[%emt 0:00:16]} Bb4 {[%emt 0:00:00]} 4. e5 {[%emt 0:00:18]} Qd7 {[%emt 0:00:20]} 5. a3 {[%emt 0:01:51]} Bxc3+ {[%emt 0:01:26]} 6. bxc3 {[%emt 0:00:06]} b6 {[%emt 0:00:30]} 7. Qg4 {[%emt 0:00:45]} f5 {[%emt 0:00:26]} 8. Qg3 {[%emt 0:00:08]} Nc6 {[%emt 0:03:00]} 9. Nh3 {[%emt 0:06:26]} Bb7 {[%emt 0:01:26]} 10. Nf4 {[%emt 0:00:50]} O-O-O {[%emt 0:01:07]} 11. h4 {[%emt 0:02:20]} Qf7 {[%emt 0:04:06]} 12. h5 {[%emt 0:00:12]} Nh6 {[%emt 0:09:19]} 13. Rh3 {[%emt 0:14:10]} Na5 {[%emt 0:04:23]} 14. Qh4 {[%emt 0:06:35]} Rdg8 {[%emt 0:09:16]} 15. Rg3 {[%emt 0:03:14]} Qd7 {[%emt 0:04:59]} 16. a4 {[%emt 0:03:20]} Nc4 {[%emt 0:06:37]} 17. Bxc4 {[%emt 0:12:24]} dxc4 {[%emt 0:00:06]} 18. a5 {[%emt 0:05:28]} b5 {[%emt 0:03:32]} 19. a6 {[%emt 0:01:40]} Be4 {[%emt 0:01:26]} 20. Ba3 {[%emt 0:00:30]} Nf7 {[%emt 0:07:53]} 21. Ke2 {[%emt 0:14:06]} g5 {[%emt 0:13:22]} 22. hxg6 {[%emt 0:00:10]} hxg6 {[%emt 0:00:03]} 23. Qf6 {[%emt 0:01:59]} g5 {[%emt 0:03:49]} 24. Ng6 {[%emt 0:04:17]} Rxg6 {[%emt 0:06:54]} 25. Qxg6 {[%emt 0:00:02]} g4 {[%emt 0:03:54]} 26. Rxg4 {[%emt 0:06:44]} Bxc2 {[%emt 0:00:48]} 27. Rg3 {[%emt 0:05:43]} Bd3+ {[%emt 0:03:45]} 28. Kd2 {[%emt 0:01:55]} f4 {[%emt 0:02:19]} 29. Rxd3 {[%emt 0:00:17]} cxd3 {[%emt 0:00:12]} 30. Qe4 {[%emt 0:00:57]} c6 {[%emt 0:00:29]} 31. Qxf4 {[%emt 0:00:33]} Rh5 {[%emt 0:01:25]} 32. g4 {[%emt 0:01:55]} Rh3 {[%emt 0:00:03]} 33. g5 {[%emt 0:02:07]} Nd8 {[%emt 0:00:13]} 34. Bd6 {[%emt 0:01:10]} Qh7 {[%emt 0:00:30]} 35. Rg1 {[%emt 0:00:44]} Rh4 {[%emt 0:02:37]} 36. Qg3 {[%emt 0:01:47]} Qh5 {[%emt 0:00:56]} 37. Qxd3 {[%emt 0:00:29]} Rf4 {[%emt 0:00:55]} 38. Qg3 {[%emt 0:00:55]} Rf3 {[%emt 0:00:46]} 39. Qg2 {[%emt 0:00:16]} Qf7 {[%emt 0:00:32]} 40. Ke2 {[%emt 0:01:13]} Rxc3 {[%emt 0:00:20]} 41. Qe4 {[%emt 0:00:03]} Qh5+ {[%emt 0:00:44]} 42. Kd2 {[%emt 0:00:56]} Qh3 {[%emt 0:00:27]} 43. Rg3 {[%emt 0:01:06]} Rxg3 {[%emt 0:00:13]} 44. fxg3 {[%emt 0:00:01]} Qh2+ {[%emt 0:00:24]} 45. Kd1 {[%emt 0:00:33]} Qg1+ {[%emt 0:00:28]} 46. Ke2 {[%emt 0:00:18]} Qxg3 {[%emt 0:00:36]} 47. g6 {[%emt 0:00:21]} Qh2+ {[%emt 0:00:19]} 48. Kd1 {[%emt 0:00:36]} Qg1+ {[%emt 0:00:11]} 49. Kd2 {[%emt 0:00:15]} Qf2+ {[%emt 0:00:28]} 50. Kc3 {[%emt 0:00:09]} Qg1 {[%emt 0:00:53]} 51. Kb2 {[%emt 0:00:34]} Qf2+ {[%emt 0:00:27]} 52. Kb3 {[%emt 0:00:17]} Qg1 {[%emt 0:02:11]} 53. Bb4 {[%emt 0:00:44]} Qd1+ {[%emt 0:00:18]} 54. Kb2 {[%emt 0:00:13]} Qg1 {[%emt 0:01:54]} 55. Ba5 {[%emt 0:00:40]} Qf2+ {[%emt 0:00:28]} 56. Kb3 {[%emt 0:00:08]} Qf1 {[%emt 0:01:37]} 57. Qc2 {[%emt 0:00:23]} Qa1 {[%emt 0:00:56]} 58. Bc3 {[%emt 0:01:32]} Qg1 {[%emt 0:00:37]} 59. Ka3 {[%emt 0:00:50]} c5 {[%emt 0:00:52]} 60. Qe4 {[%emt 0:01:48]} b4+ {[%emt 0:00:38]} 61. Kb3 {[%emt 0:00:01]} bxc3 {[%emt 0:00:41]} 62. Qa8+ {[%emt 0:00:05]} Kd7 {[%emt 0:00:04]} 63. Qxa7+ {[%emt 0:00:03]} Ke8 {[%emt 0:00:08]} 64. Qxc5 {[%emt 0:00:15]} Qxg6 {[%emt 0:00:22]} 65. a7 {[%emt 0:00:26]} Qb1+ {[%emt 0:00:11]} 66. Kxc3 {[%emt 0:00:05]} Qb7 {[%emt 0:00:33]} 67. Kd2 {[%emt 0:01:18]} Nc6 {[%emt 0:00:50]} 68. d5 {[%emt 0:00:41]} Qb2+ {[%emt 0:00:59]} 69. Kd1 {[%emt 0:00:17]} Qa1+ {[%emt 0:00:35]} 70. Kd2 {[%emt 0:00:09]} Qb2+ {[%emt 0:00:21]} 1/2-1/2

[Event "ESP-chT 2nd Division 2019"]
[Site "Linares"]
[Date "2019.08.21"]
[Round "4.4"]
[White "Silva Rodriguez, Fernando"]
[Black "Trigo Urquijo, Sergio"]
[Result "1-0"]
[ECO "C03"]
[WhiteElo "2253"]
[BlackElo "2385"]
[Annotator "NA"]
[PlyCount "83"]
[EventDate "2019.08.19"]
[EventType "team-tourn"]
[EventCountry "ESP"]
[SourceTitle "playchess.com"]
[Source "ChessBase"]
[SourceQuality "1"]
[TimeControl "5400+30"]

1. e4 {[%emt 0:00:00]} e6 {[%emt 0:01:37]} 2. d4 {[%emt 0:00:00]} d5 {[%emt 0:00:10]} 3. Nd2 {[%emt 0:00:00]} Be7 {[%emt 0:00:37]} 4. c3 {[%emt 0:03:38]} c5 {[%emt 0:01:24]} 5. dxc5 {[%emt 0:00:13]} Nf6 {[%emt 0:02:58]} 6. exd5 {[%emt 0:02:56]} Qxd5 {[%emt 0:01:52]} 7. b4 {[%emt 0:00:12]} a5 {[%emt 0:04:16]} 8. Ngf3 {[%emt 0:00:36]} axb4 {[%emt 0:09:27]} 9. cxb4 {[%emt 0:00:19]} O-O {[%emt 0:00:50]} 10. Bc4 {[%emt 0:01:24]} Qh5 {[%emt 0:00:08]} 11. O-O {[%emt 0:08:53]} Nd5 {[%emt 0:05:02]} 12. Qb3 {[%emt 0:04:51]} Nc6 {[%emt 0:08:42]} 13. Bxd5 {[%emt 0:08:56]} Qxd5 {[%emt 0:04:19]} 14. a3 {[%emt 0:01:12]} Qxb3 {[%emt 0:10:44]} 15. Nxb3 {[%emt 0:00:16]} Bf6 {[%emt 0:00:17]} 16. Rb1 {[%emt 0:00:31]} e5 {[%emt 0:00:10]} 17. Bb2 {[%emt 0:10:27]} Bf5 {[%emt 0:09:23]} 18. Ra1 {[%emt 0:01:36]} Rfd8 {[%emt 0:03:50]} 19. Rfe1 {[%emt 0:03:22]} Rd5 {[%emt 0:04:49]} 20. Nbd2 {[%emt 0:12:20]} Nd4 {[%emt 0:15:40]} 21. Nc4 {[%emt 0:17:24]} Nxf3+ {[%emt 0:09:53]} 22. gxf3 {[%emt 0:00:15]} Rd3 {[%emt 0:00:01]} 23. Bxe5 {[%emt 0:03:28]} Rxf3 {[%emt 0:00:55]} 24. Bxf6 {[%emt 0:01:05]} gxf6 {[%emt 0:00:02]} 25. Re7 {[%emt 0:04:46]} Be6 {[%emt 0:01:20]} 26. Ne3 {[%emt 0:00:26]} Bh3 {[%emt 0:01:47]} 27. Rxb7 {[%emt 0:12:21]} Kh8 {[%emt 0:01:19]} 28. Re7 {[%emt 0:01:34]} Rg8+ {[%emt 0:00:58]} 29. Kh1 {[%emt 0:00:03]} Rxf2 {[%emt 0:00:32]} 30. Rg1 {[%emt 0:00:57]} Be6 {[%emt 0:01:14]} 31. Rxg8+ {[%emt 0:00:12]} Kxg8 {[%emt 0:00:03]} 32. c6 {[%emt 0:00:38]} Rb2 {[%emt 0:01:04]} 33. Re8+ {[%emt 0:01:00]} Kg7 {[%emt 0:00:03]} 34. Kg1 {[%emt 0:00:28]} f5 {[%emt 0:00:19]} 35. Ng2 {[%emt 0:00:38]} Rc2 {[%emt 0:01:01]} 36. b5 {[%emt 0:00:11]} Rc1+ {[%emt 0:00:36]} 37. Kf2 {[%emt 0:00:09]} Rc2+ {[%emt 0:00:09]} 38. Ke3 {[%emt 0:01:01]} Rxg2 {[%emt 0:00:23]} 39. b6 {[%emt 0:00:05]} f4+ {[%emt 0:00:30]} 40. Kxf4 {[%emt 0:00:23]} Rg4+ {[%emt 0:00:16]} 41. Kf3 {[%emt 0:00:54]} Ra4 {[%emt 0:00:31]} 42. Rxe6 {[%emt 0:00:25]} 1-0

[Event "ESP-chT 2nd Division 2019"]
[Site "Linares"]
[Date "2019.08.21"]
[Round "4.5"]
[White "Sosa Suarez, Carla Cristina"]
[Black "Ortega Sanchis, Angela"]
[Result "1-0"]
[ECO "C10"]
[WhiteElo "2135"]
[BlackElo "1675"]
[Annotator "NA"]
[PlyCount "123"]
[EventDate "2019.08.19"]
[EventType "team-tourn"]
[EventCountry "ESP"]
[SourceTitle "playchess.com"]
[Source "ChessBase"]
[SourceQuality "1"]
[TimeControl "5400+30"]

1. e4 {[%emt 0:00:00]} e6 {[%emt 0:00:00]} 2. d4 {[%emt 0:00:00]} d5 {[%emt 0:00:00]} 3. Nd2 {[%emt 0:00:00]} dxe4 {[%emt 0:00:00]} 4. Nxe4 {[%emt 0:00:00]} Nd7 {[%emt 0:00:00]} 5. Nf3 {[%emt 0:01:40]} Ngf6 {[%emt 0:00:00]} 6. Bd3 {[%emt 0:02:32]} Nxe4 {[%emt 0:00:43]} 7. Bxe4 {[%emt 0:00:04]} Nf6 {[%emt 0:00:07]} 8. Bg5 {[%emt 0:02:51]} Be7 {[%emt 0:06:07]} 9. Bd3 {[%emt 0:02:15]} c5 {[%emt 0:01:55]} 10. dxc5 {[%emt 0:06:20]} Qa5+ {[%emt 0:01:29]} 11. c3 {[%emt 0:04:21]} Qxc5 {[%emt 0:00:51]} 12. Qc2 {[%emt 0:02:33]} Bd7 {[%emt 0:03:21]} 13. Be3 {[%emt 0:05:48]} Qc7 {[%emt 0:03:01]} 14. Bd4 {[%emt 0:01:30]} Bc5 {[%emt 0:11:13]} 15. Be5 {[%emt 0:02:48]} Bd6 {[%emt 0:17:39]} 16. Bxd6 {[%emt 0:01:17]} Qxd6 {[%emt 0:00:18]} 17. O-O-O {[%emt 0:01:07]} Qe7 {[%emt 0:05:49]} 18. Ne5 {[%emt 0:02:03]} Bc6 {[%emt 0:06:28]} 19. Nxc6 {[%emt 0:02:52]} bxc6 {[%emt 0:00:02]} 20. Rhg1 {[%emt 0:04:43]} Nd5 {[%emt 0:04:49]} 21. Be4 {[%emt 0:03:02]} Qc7 {[%emt 0:03:59]} 22. Rd4 {[%emt 0:12:25]} Qxh2 {[%emt 0:15:57]} 23. Rgd1 {[%emt 0:00:46]} O-O {[%emt 0:01:01]} 24. g3 {[%emt 0:05:04]} Qh6+ {[%emt 0:00:37]} 25. Kb1 {[%emt 0:00:24]} f5 {[%emt 0:01:48]} 26. Rh1 {[%emt 0:01:32]} Qf6 {[%emt 0:00:30]} 27. Bd3 {[%emt 0:00:52]} h6 {[%emt 0:06:45]} 28. Rc4 {[%emt 0:02:48]} e5 {[%emt 0:02:08]} 29. g4 {[%emt 0:01:33]} e4 {[%emt 0:00:54]} 30. Be2 {[%emt 0:00:15]} Nb6 {[%emt 0:03:38]} 31. Rd4 {[%emt 0:01:28]} Rad8 {[%emt 0:01:07]} 32. Rhd1 {[%emt 0:00:29]} Rd5 {[%emt 0:01:43]} 33. R1d2 {[%emt 0:03:44]} Rfd8 {[%emt 0:00:33]} 34. Rxd5 {[%emt 0:02:06]} Rxd5 {[%emt 0:00:06]} 35. Qd1 {[%emt 0:05:47]} f4 {[%emt 0:01:54]} 36. Ba6 {[%emt 0:04:53]} Qg6 {[%emt 0:00:51]} 37. Rxd5 {[%emt 0:01:33]} cxd5 {[%emt 0:00:01]} 38. a4 {[%emt 0:01:33]} Qc6 {[%emt 0:00:58]} 39. Bb5 {[%emt 0:01:36]} Qc5 {[%emt 0:00:23]} 40. Qd2 {[%emt 0:01:24]} e3 {[%emt 0:00:17]} 41. fxe3 {[%emt 0:00:08]} Qxe3 {[%emt 0:00:09]} 42. Qxe3 {[%emt 0:00:29]} fxe3 {[%emt 0:00:01]} 43. Kc2 {[%emt 0:00:21]} Kf7 {[%emt 0:01:16]} 44. b3 {[%emt 0:01:11]} Ke6 {[%emt 0:00:50]} 45. Kd3 {[%emt 0:00:48]} Ke5 {[%emt 0:00:34]} 46. Kxe3 {[%emt 0:00:19]} Nc8 47. Bd7 {[%emt 0:02:11]} Nd6 {[%emt 0:00:28]} 48. a5 {[%emt 0:00:25]} Nb7 {[%emt 0:00:23]} 49. b4 {[%emt 0:01:01]} Nd6 {[%emt 0:00:10]} 50. Bc6 {[%emt 0:00:58]} Nc4+ {[%emt 0:00:25]} 51. Kd3 {[%emt 0:00:46]} Kd6 {[%emt 0:00:06]} 52. Bb7 {[%emt 0:01:22]} Nb2+ {[%emt 0:01:39]} 53. Kd4 {[%emt 0:00:45]} Nd1 {[%emt 0:00:47]} 54. b5 {[%emt 0:01:00]} Kc7 {[%emt 0:00:36]} 55. Bxd5 {[%emt 0:00:14]} Nf2 {[%emt 0:00:17]} 56. Bf3 {[%emt 0:00:39]} Nh3 {[%emt 0:00:41]} 57. c4 {[%emt 0:00:25]} Nf4 {[%emt 0:00:32]} 58. c5 {[%emt 0:00:46]} Ne6+ {[%emt 0:00:19]} 59. Kc4 {[%emt 0:00:35]} g6 {[%emt 0:00:40]} 60. b6+ axb6 {[%emt 0:00:31]} 61. cxb6+ {[%emt 0:01:25]} Kb8 {[%emt 0:00:29]} 62. a6 {[%emt 0:00:32]} 1-0